lending/lending_fUSD_20240705
["ID","MTS","AMOUNT","RATE_DAILY","PERIOD"]
[331227651,1720144248651,-1052.59,0.00021917,4]
[331227653,1720144248661,-1052.59,0.00021917,4]
[331227655,1720144248671,-1052.59,0.00021917,4]
[331227657,1720144248680,-1052.59,0.00021917,4]
[331227659,1720144248702,-1052.59,0.00021917,4]
[331227661,1720144248711,-1052.59,0.00021917,4]
[331227663,1720144248722,-1052.59,0.00021917,4]
[331227665,1720144248731,-1052.59,0.00021917,4]
[331227667,1720144248741,-1052.59,0.00021917,4]
[331227669,1720144248751,-1052.59,0.00021917,4]
[331227671,1720144248761,-1052.59,0.00021917,4]
[331227673,1720144248772,-1052.59,0.00021917,4]
[331227675,1720144248781,-1052.59,0.00021917,4]
[331227677,1720144248791,-1052.59,0.00021917,4]
[331227679,1720144248802,-1052.59,0.00021917,4]
[331227681,1720144248812,-1052.59,0.00021917,4]
[331227683,1720144248823,-1052.59,0.00021917,4]
[331227685,1720144248832,-1052.59,0.00021917,4]
[331227687,1720144248841,-1052.76439188,0.00021917,4]
[331227689,1720144248851,-500.0,0.00021917,4]
[331227691,1720144248859,-500.0,0.00021917,4]
[331227693,1720144248868,-500.0,0.00021917,4]
[331227695,1720144248879,-500.0,0.00021917,4]
[331227697,1720144248888,-500.0,0.00021917,4]
[331227699,1720144248897,-500.0,0.00021917,4]
[331227701,1720144248906,-500.0,0.00021917,4]
[331227703,1720144248915,-500.0,0.00021917,4]
[331227705,1720144248925,-500.0,0.00021917,4]
[331227706,1720144248936,-500.0,0.00021917,4]
[331227708,1720144248945,-500.0,0.00021917,4]
[331227710,1720144248955,-500.0,0.00021917,4]
[331227712,1720144248964,-500.0,0.00021917,4]
[331227714,1720144248974,-500.0,0.00021917,4]
[331227717,1720144248983,-500.0,0.00021917,4]
[331227719,1720144248993,-500.0,0.00021917,4]
[331227721,1720144249002,-500.0,0.00021917,4]
[331227722,1720144249012,-478.27946306,0.00021917,4]
[331227725,1720144249022,-2077.27,0.00021917,4]
[331227727,1720144249031,-2077.27,0.00021917,4]
[331227728,1720144249040,-2077.27,0.00021917,4]
[331227730,1720144249050,-2077.27,0.00021917,4]
[331227732,1720144249059,-2077.27,0.00021917,4]
[331227735,1720144249068,-2077.27,0.00021917,4]
[331227736,1720144249077,-2077.27,0.00021917,4]
[331227738,1720144249087,-2077.27,0.00021917,4]
[331227741,1720144249096,-2077.27,0.00021917,4]
[331227743,1720144249105,-2077.27,0.00021917,4]
[331227744,1720144249115,-2077.27,0.00021917,4]
[331227746,1720144249124,-2077.27,0.00021917,4]
[331227749,1720144249133,-2077.27,0.00021917,4]
[331227751,1720144249143,-2077.27,0.00021917,4]
[331227753,1720144249152,-972.07,0.00021917,4]
[331227755,1720144249161,-972.07,0.00021917,4]
[331227756,1720144249170,-972.07,0.00021917,4]
[331227758,1720144249180,-972.07,0.00021917,4]
[331227760,1720144249192,-972.07,0.00021917,4]
[331227762,1720144249201,-355.67758943,0.00021917,4]
[331227770,1720144249267,-513.7032,0.00021917,4]
[331227773,1720144249280,-102.68921057,0.00021917,4]
[331227775,1720144249290,-972.07,0.00021917,4]
[331227777,1720144249299,-151.0,0.00021917,2]
[331227779,1720144249308,-151.0,0.00021917,2]
[331227781,1720144249317,-151.0,0.00021917,2]
[331227783,1720144249327,-972.07,0.00021917,4]
[331227785,1720144249336,-100.40143112,0.00021917,2]
[331228321,1720144531341,154.4510762,0.00031573,30]
[331228322,1720144568958,150.0,0.00031573,30]
[331228324,1720144647875,999.999999,0.00031573,120]
[331228325,1720144747229,1000.0,0.00031573,30]
[331228326,1720144747885,811.81728167,0.00031573,30]
[331228327,1720145001700,214.65,0.00025025,120]
[331228402,1720145432464,-683.86446327,0.00013258,2]
[331228407,1720145432475,-378.82490657,0.00013259,2]
[331228411,1720145432485,-165.42545049,0.00013358,2]
[331228442,1720145433261,-812.57454951,0.00013358,2]
[331228443,1720145433270,-1455.69228074,0.00013359,2]
[331228444,1720145433282,-140.92495026,0.00013359,2]
[331228445,1720145433291,-158.69986824,0.00013698,2]
[331228446,1720145433300,-426.22381376,0.000153,2]
[331228448,1720145438485,-227.17477303,0.00013999,2]
[331228450,1720145438494,-836.44937279,0.000153,2]
[331228451,1720145438507,-1145.32681345,0.000153,2]
[331228452,1720145438516,-457.63110074,0.00018102,2]
[331228454,1720145438528,-107.04889926,0.00018102,2]
[331228455,1720145438538,-1049.90436879,0.00018622,2]
[331228456,1720145439598,-20.09563121,0.00018622,2]
[331228457,1720145439608,-1282.9136558,0.00018759,2]
[331228458,1720145439618,-420.80156831,0.00018899,2]
[331228459,1720145439627,-788.64970258,0.00018999,2]
[331228460,1720145439637,-551.0,0.00019248,2]
[331228461,1720145439647,-275.56259237,0.00019354,2]
[331228462,1720145439656,-160.27013735,0.00019389,2]
[331228463,1720145439666,-158.97694807,0.00019389,2]
[331228464,1720145439676,-551.0,0.00019426,2]
[331228465,1720145439685,-114.37423279,0.00019559,2]
[331228466,1720145439729,-135.62576721,0.00019559,2]
[331228467,1720145439739,-551.0,0.00019605,2]
[331228468,1720145439749,-250.0,0.00019721,2]
[331228469,1720145439759,-774.64630338,0.00019725,2]
[331228470,1720145439770,-114.54404352,0.00019725,2]
[331228471,1720145439780,-400.0,0.00019811,2]
[331228472,1720145439789,-177.15931238,0.00019851,2]
[331228473,1720145439801,-375.79891655,0.00019851,2]
[331228474,1720145441319,-551.0,0.00019784,2]
[331228476,1720145441329,-56.83177107,0.00019851,2]
[331228478,1720145441343,-678.81202413,0.00019851,2]
[331228480,1720145441355,-121.18797587,0.00019851,2]
[331228481,1720145441364,-152.83,0.00019862,30]
[331228482,1720145441374,-250.0,0.00019959,2]
[331228483,1720145441384,-551.0,0.00019963,2]
[331228484,1720145441394,-531.79272778,0.00019964,2]
[331228485,1720145441404,-200.85,0.00019999,2]
[331228486,1720145441413,-1500.0,0.0002,2]
[331228487,1720145441423,-1500.0,0.0002,2]
[331228488,1720145441432,-1500.0,0.0002,2]
[331228489,1720145441443,-1500.0,0.0002,2]
[331228490,1720145441452,-1500.0,0.0002,2]
[331228491,1720145441462,-1500.0,0.0002,2]
[331228492,1720145441471,-1500.0,0.0002,2]
[331228494,1720145441481,-1713.97,0.0002,2]
[331228496,1720145441490,-1500.0,0.0002,2]
[331228498,1720145441499,-1500.0,0.0002,2]
[331228500,1720145441509,-214.65,0.0002002,2]
[331228502,1720145441519,-600.0,0.0002013,2]
[331228504,1720145441528,-551.0,0.00020141,2]
[331228506,1720145441538,-151.0,0.00020231,2]
[331228508,1720145441547,-551.0,0.0002032,2]
[331228510,1720145441557,-564.68,0.00020366,2]
[331228512,1720145441566,-151.0,0.00020575,2]
[331228514,1720145441575,-1000.0,0.00020715,2]
[331228516,1720145441588,-151.0,0.0002092,2]
[331228518,1720145441605,-10629.44,0.00020951,2]
[331228520,1720145441614,-9735.09213376,0.00020951,2]
[331228522,1720145441628,-19289.51786624,0.00020951,2]
[331228524,1720145441639,-1099.10580547,0.00021,2]
[331228526,1720145441649,-226.71873997,0.00021,2]
[331228528,1720145441659,-200.343743,0.00021018,2]
[331228530,1720145441668,-4598.919756,0.00021018,2]
[331228531,1720145441677,-184.542606,0.00021018,2]
[331228533,1720145441687,-275.704575,0.00021018,2]
[331228535,1720145441696,-3744.887245,0.00021018,2]
[331228537,1720145441705,-352.808551,0.00021018,2]
[331228538,1720145441715,-2293.034118,0.00021018,2]
[331228540,1720145441724,-1146.0,0.00021043,2]
[331228542,1720145441734,-151.0,0.00021265,2]
[331228544,1720145441743,-238.30998791,0.0002127,2]
[331228546,1720145441751,-238.30998791,0.0002127,2]
[331228547,1720145441761,-238.30998791,0.0002127,2]
[331228549,1720145441770,-4598.919756,0.0002128,2]
[331228551,1720145441780,-275.704575,0.0002128,2]
[331228553,1720145441789,-3744.887245,0.0002128,2]
[331228555,1720145441799,-352.808551,0.0002128,2]
[331228556,1720145441808,-2293.034118,0.0002128,2]
[331228558,1720145441818,-238.30998791,0.00021299,2]
[331228560,1720145441827,-238.30998791,0.00021299,2]
[331228561,1720145441837,-238.30998791,0.00021299,2]
[331228563,1720145441846,-5000.0,0.00021309,2]
[331228565,1720145441856,-238.30998791,0.00021468,2]
[331228567,1720145441866,-905.7729296,0.00021478,2]
[331228569,1720145441876,-238.30998791,0.00021533,2]
[331228570,1720145441885,-238.30998791,0.00021533,2]
[331228571,1720145441895,-238.30998791,0.00021533,2]
[331228573,1720145441904,-238.30998791,0.00021533,2]
[331228575,1720145441913,-238.30998791,0.00021533,2]
[331228577,1720145441922,-238.30998791,0.00021533,2]
[331228578,1720145441932,-238.30998791,0.00021533,2]
[331228580,1720145441941,-4598.919756,0.00021543,2]
[331228581,1720145441951,-184.542606,0.00021543,2]
[331228583,1720145441960,-275.704575,0.00021543,2]
[331228585,1720145441969,-3744.887245,0.00021543,2]
[331228586,1720145441978,-352.808551,0.00021543,2]
[331228588,1720145441987,-2293.034118,0.00021543,2]
[331228590,1720145441997,-238.30998791,0.00021562,2]
[331228591,1720145442007,-151.0,0.0002161,2]
[331228607,1720145442185,-788.191,0.00021622,2]
[331228609,1720145442194,-238.30998791,0.00021631,2]
[331228611,1720145442204,-238.30998791,0.00021631,2]
[331228612,1720145442215,-238.30998791,0.00021631,2]
[331228614,1720145442224,-238.30998791,0.00021631,2]
[331228616,1720145442234,-238.30998791,0.00021631,2]
[331228618,1720145442243,-238.30998791,0.00021631,2]
[331228620,1720145442253,-238.30998791,0.00021631,2]
[331228621,1720145442262,-238.30998791,0.00021634,2]
[331228623,1720145442271,-238.30998791,0.0002164,2]
[331228625,1720145442281,-238.30998791,0.0002164,2]
[331228627,1720145442290,-238.30998791,0.0002164,2]
[331228629,1720145442300,-238.30998791,0.0002164,2]
[331228631,1720145442309,-238.30998791,0.0002164,2]
[331228632,1720145442318,-238.30998791,0.0002164,2]
[331228634,1720145442328,-238.30998791,0.0002164,2]
[331228636,1720145442339,-238.30998791,0.0002164,2]
[331228638,1720145442348,-238.30998791,0.0002164,2]
[331228640,1720145442358,-238.30998791,0.0002164,2]
[331228642,1720145442367,-238.30998791,0.0002164,2]
[331228643,1720145442376,-238.30998791,0.0002164,2]
[331228645,1720145442385,-238.30998791,0.0002164,2]
[331228647,1720145442394,-238.30998791,0.0002164,2]
[331228649,1720145442404,-238.30998791,0.0002164,2]
[331228650,1720145442413,-238.30998791,0.0002164,2]
[331228652,1720145442423,-424.64,0.00021641,2]
[331228654,1720145442432,-854.2,0.00021641,2]
[331228656,1720145442441,-419.07,0.00021641,2]
[331228658,1720145442451,-419.07,0.00021641,2]
[331228660,1720145442461,-854.2,0.00021641,2]
[331228662,1720145442471,-854.2,0.00021641,2]
[331228664,1720145442480,-419.07,0.00021641,2]
[331228665,1720145442491,-854.2,0.00021641,2]
[331228667,1720145442502,-854.2,0.00021641,2]
[331228669,1720145442511,-419.07,0.00021641,2]
[331228671,1720145442520,-419.07,0.00021641,2]
[331228673,1720145442529,-854.2,0.00021641,2]
[331228675,1720145442538,-373.9,0.00021641,2]
[331228676,1720145442547,-419.07,0.00021641,2]
[331228678,1720145442556,-419.07,0.00021641,2]
[331228680,1720145442565,-590.98,0.00021641,2]
[331228682,1720145442574,-419.07,0.00021641,2]
[331228684,1720145442583,-419.07,0.00021641,2]
[331228685,1720145442593,-419.07,0.00021641,2]
[331228687,1720145442603,-163.77,0.00021644,2]
[331228689,1720145442613,-302.28,0.00021644,2]
[331228691,1720145442623,-25000.0,0.0002165,2]
[331228693,1720145442632,-238.30998791,0.00021663,2]
[331228695,1720145442641,-238.30998791,0.00021663,2]
[331228696,1720145442650,-238.30998791,0.00021663,2]
[331228698,1720145442659,-238.30998791,0.00021663,2]
[331228700,1720145442668,-238.30998791,0.00021663,2]
[331228702,1720145442677,-238.30998791,0.00021663,2]
[331228704,1720145442686,-854.2,0.00021674,2]
[331228706,1720145442695,-854.2,0.00021674,2]
[331228707,1720145442704,-854.2,0.00021674,2]
[331228709,1720145442713,-419.07,0.00021674,2]
[331228711,1720145442722,-419.07,0.00021674,2]
[331228713,1720145442732,-419.07,0.00021674,2]
[331228714,1720145442741,-854.2,0.00021674,2]
[331228716,1720145442751,-419.07,0.00021674,2]
[331228718,1720145442761,-854.2,0.00021674,2]
[331228720,1720145442770,-419.07,0.00021674,2]
[331228722,1720145442779,-419.07,0.00021674,2]
[331228724,1720145442787,-419.07,0.00021674,2]
[331228725,1720145442796,-854.2,0.00021674,2]
[331228727,1720145442806,-238.30998791,0.00021697,2]
[331228729,1720145442815,-238.30998791,0.00021697,2]
[331228731,1720145442824,-238.30998791,0.00021697,2]
[331228733,1720145442837,-238.30998791,0.00021697,2]
[331228735,1720145442846,-238.30998791,0.00021697,2]
[331228736,1720145442854,-238.30998791,0.00021697,2]
[331228738,1720145442864,-238.30998791,0.00021697,2]
[331228740,1720145442873,-238.30998791,0.00021697,2]
[331228742,1720145442883,-4039.672,0.00021707,2]
[331228744,1720145442892,-8164.5222,0.00021707,2]
[331228746,1720145442900,-158.69986824,0.00021707,2]
[331228748,1720145442910,-500.0,0.00021742,2]
[331228750,1720145442920,-238.30998791,0.00021795,2]
[331228751,1720145442929,-238.30998791,0.00021795,2]
[331228753,1720145442938,-213.6153,0.00021805,2]
[331228755,1720145442947,-1398.9458,0.00021805,2]
[331228757,1720145442957,-632.4793,0.00021805,2]
[331228759,1720145442966,-4598.919756,0.00021806,2]
[331228761,1720145442975,-275.704575,0.00021806,2]
[331228763,1720145442984,-3744.887245,0.00021806,2]
[331228764,1720145442993,-352.808551,0.00021806,2]
[331228766,1720145443002,-2293.034118,0.00021806,2]
[331228768,1720145443011,-16423.3486,0.00021807,2]
[331228770,1720145443022,-1000.0,0.00021807,2]
[331228772,1720145443034,-500.0,0.00021807,2]
[331228773,1720145443043,-1424.3315,0.00021807,2]
[331228775,1720145443052,-313.44297128,0.00021807,2]
[331228777,1720145443061,-1076.7209,0.00021817,2]
[331228779,1720145443071,-215.4612,0.00021817,2]
[331228781,1720145443080,-1088.4615,0.00021817,2]
[331228783,1720145443094,-167.9105518,0.00021817,2]
[331228785,1720145443103,-159.14238252,0.00021817,2]
[331228787,1720145443120,-5153.65368381,0.00021817,2]
[331228789,1720145443130,-443.96334446,0.00021817,2]
[331228791,1720145443144,-1243.54567172,0.00021817,2]
[331228793,1720145443153,-3173.9440254,0.00021848,2]
[331228794,1720145443162,-4370.03680824,0.00021897,2]
[331228796,1720145443172,-152.53,0.00021897,2]
[331228798,1720145443182,-34960.2944659,0.00021898,2]
[331228799,1720145443192,-500.0,0.000219,4]
[331228800,1720145443201,-150.0,0.000219,2]
[331228801,1720145443211,-257.0,0.000219,2]
[331228802,1720145443222,-380.66828789,0.00021904,3]
[331228803,1720145443231,-88663.60360883,0.00021907,2]
[331228804,1720145443243,-76264.31565684,0.00021907,2]
[331228805,1720145443254,-770.40999999,0.00021907,2]
[331228806,1720145443266,-363.06944734,0.00021907,2]
[331228807,1720145443275,-154216.93055238,0.00021907,2]
[331228808,1720145443286,-513.778761,0.00021907,2]
[331228809,1720145443299,-1131.59228596,0.00021907,2]
[331228874,1720145443951,-449.834,0.00020499,2]
[331228878,1720145443963,-101.166,0.00020499,2]
[331228882,1720145443973,-471.044,0.00020678,2]
[331228887,1720145443984,-79.956,0.00020678,2]
[331228891,1720145443994,-551.0,0.00020857,2]
[331228895,1720145444003,-551.0,0.00021035,2]
[331228899,1720145444012,-551.0,0.00021214,2]
[331228902,1720145444024,-238.30998791,0.00021796,2]
[331228904,1720145444034,-238.30998791,0.00021796,2]
[331228907,1720145444047,-238.30998791,0.00021796,2]
[331228910,1720145444056,-238.30998791,0.00021796,2]
[331228912,1720145444067,-238.30998791,0.00021796,2]
[331228914,1720145444077,-238.30998791,0.00021796,2]
[331228916,1720145444086,-187.34628113,0.00021796,2]
[331229280,1720145447673,-551.0,0.00021393,2]
[331229282,1720145447683,-287.58526808,0.00021572,2]
[331229284,1720145447694,-263.41473192,0.00021572,2]
[331229287,1720145447703,-419.07,0.00021674,2]
[331229288,1720145447713,-551.0,0.0002175,2]
[331229290,1720145447722,-50.96370678,0.00021796,2]
[331229292,1720145447731,-238.30998791,0.00021797,2]
[331229294,1720145447740,-238.30998791,0.00021797,2]
[331229296,1720145447749,-238.30998791,0.00021797,2]
[331229298,1720145447759,-238.30998791,0.00021797,2]
[331229300,1720145447769,-238.30998791,0.00021797,2]
[331229302,1720145447778,-238.30998791,0.00021797,2]
[331229305,1720145447788,-238.30998791,0.00021797,2]
[331229306,1720145447797,-238.30998791,0.00021797,2]
[331229308,1720145447807,-238.30998791,0.00021797,2]
[331229311,1720145447817,-238.30998791,0.00021797,2]
[331229313,1720145447826,-238.30998791,0.00021797,2]
[331229315,1720145447835,-57.46540208,0.00021797,2]
[331229317,1720145447849,-180.84458583,0.00021797,2]
[331229319,1720145447859,-238.30998791,0.00021797,2]
[331229321,1720145447868,-238.30998791,0.00021807,2]
[331229323,1720145447878,-80.63367151,0.00021807,2]
[331229326,1720145447890,-157.6763164,0.00021807,2]
[331229328,1720145447900,-238.30998791,0.00021807,2]
[331229330,1720145447910,-130.37799569,0.00021807,2]
[331230455,1720145468931,150.0,0.00031573,30]
[331230501,1720146632874,-572.88577079,0.00012859,2]
[331230504,1720146632887,-11946.44993826,0.00012859,2]
[331230506,1720146632897,-160.42706468,0.00012959,2]
[331230508,1720146632906,-150.12206159,0.00013699,2]
[331230510,1720146632916,-25281.51926581,0.00013999,2]
[331230512,1720146632926,-580.3,0.00016535,2]
[331230514,1720146632935,-10527.57945044,0.00017199,2]
[331230516,1720146632945,-234.21,0.0001726,2]
[331230518,1720146632954,-4701.31596047,0.00017446,2]
[331230519,1720146632965,-150.99,0.00017534,2]
[331230521,1720146632977,-3352.62,0.00017784,2]
[331230523,1720146632986,-1344.87249667,0.00017807,2]
[331230525,1720146632995,-3806.46819839,0.00017999,2]
[331230527,1720146633004,-320.0,0.00018031,2]
[331230529,1720146633014,-1134.41,0.00018064,2]
[331230531,1720146633023,-800.0,0.00018201,2]
[331230533,1720146633032,-1855.4,0.00018202,2]
[331230535,1720146633042,-250.0,0.00018481,2]
[331230536,1720146633052,-519.73,0.00018501,2]
[331230537,1720146633062,-167.58,0.00018514,2]
[331230538,1720146633071,-519.73,0.00018552,2]
[331230539,1720146633081,-519.73,0.00018603,2]
[331230540,1720146633090,-250.0,0.00018615,2]
[331230541,1720146633100,-680.0,0.00018642,2]
[331230542,1720146633109,-1717.99484053,0.00018649,2]
[331230543,1720146633119,-519.73,0.00018654,2]
[331230544,1720146633128,-519.73,0.00018704,2]
[331230545,1720146633138,-1310.11788475,0.00018717,2]
[331230546,1720146633147,-519.73,0.00018755,2]
[331230547,1720146633157,-1763.86212679,0.00018759,2]
[331230548,1720146633166,-580.3,0.00018799,2]
[331230549,1720146633176,-519.73,0.00018806,2]
[331230550,1720146633186,-152.83,0.00018849,30]
[331230551,1720146633196,-519.73,0.00018857,2]
[331230552,1720146633205,-522.78754524,0.00018864,2]
[331230553,1720146633214,-519.73,0.00018907,2]
[331230554,1720146633226,-2028.09747309,0.00018919,2]
[331230555,1720146633235,-624.67340575,0.00018919,2]
[331230556,1720146633244,-575.14679552,0.00018919,2]
[331230557,1720146633254,-941.60948325,0.00018919,2]
[331230558,1720146633263,-553.43773286,0.00018919,2]
[331230559,1720146633271,-649.68927361,0.00018919,2]
[331230560,1720146633280,-155.58038641,0.00018919,2]
[331230561,1720146633289,-519.73,0.00018958,2]
[331230562,1720146633298,-193.73858537,0.00018999,2]
[331230563,1720146633307,-547.50514469,0.00018999,2]
[331230564,1720146633316,-371.77883732,0.00018999,2]
[331230565,1720146633325,-266.29859701,0.00018999,2]
[331230566,1720146633334,-390.93791964,0.00018999,2]
[331230567,1720146633345,-1250.0,0.00019,2]
[331230568,1720146633354,-5000.0,0.00019,2]
[331230569,1720146633363,-519.73,0.00019009,2]
[331230570,1720146633373,-519.73,0.0001906,2]
[331230571,1720146633383,-202.00055111,0.00019069,2]
[331230572,1720146633392,-892.36342994,0.00019069,2]
[331230573,1720146633402,-475.76542241,0.00019077,2]
[331230574,1720146633411,-155.0,0.00019077,2]
[331230575,1720146633421,-155.65837884,0.00019077,2]
[331230576,1720146633432,-519.73,0.0001911,2]
[331230577,1720146633441,-519.73,0.00019161,2]
[331230578,1720146633455,-250.0,0.00019178,2]
[331230579,1720146633464,-519.73,0.00019212,2]
[331230580,1720146633477,-2396.51067217,0.00019229,2]
[331230581,1720146633486,-300.0,0.00019248,2]
[331230582,1720146633497,-519.73,0.00019262,2]
[331230583,1720146633508,-519.73,0.00019313,2]
[331230584,1720146633519,-9490.68,0.00019339,2]
[331230585,1720146633531,-29999.99,0.00019339,2]
[331230586,1720146633541,-19999.99,0.00019339,2]
[331230587,1720146633551,-1162.88,0.00019339,2]
[331230588,1720146633560,-6251.32,0.00019339,2]
[331230589,1720146633569,-227.17477303,0.0001935,2]
[331230590,1720146633579,-277.60345546,0.00019354,2]
[331230591,1720146633588,-211.4043666,0.00019354,2]
[331230592,1720146633597,-294.03721645,0.00019354,2]
[331230593,1720146633608,-1047.28793829,0.00019354,2]
[331230594,1720146633621,-298.50467804,0.00019354,2]
[331230595,1720146633631,-305.52701916,0.00019354,2]
[331230596,1720146633640,-433.47864913,0.00019354,2]
[331230597,1720146633650,-519.73,0.00019364,2]
[331230598,1720146633660,-400.73863886,0.00019399,2]
[331230599,1720146633668,-684.604,0.00019413,2]
[331230600,1720146633678,-446.418,0.00019413,2]
[331230601,1720146633688,-817.171,0.00019413,2]
[331230602,1720146633697,-451.087,0.00019413,2]
[331230603,1720146633708,-1309.074,0.00019413,2]
[331230604,1720146633718,-2375.0,0.00019413,2]
[331230605,1720146633730,-284.171,0.00019413,2]
[331230606,1720146633739,-1995.558,0.00019413,2]
[331230607,1720146633748,-3224.0,0.00019413,2]
[331230608,1720146633758,-550.345,0.00019413,2]
[331230609,1720146633768,-1070.0,0.00019413,2]
[331230610,1720146633779,-1665.891,0.00019413,2]
[331230611,1720146633788,-5811.0,0.00019413,2]
[331230612,1720146633797,-5200.08,0.00019413,2]
[331230613,1720146633806,-291.0,0.00019413,2]
[331230614,1720146633816,-364.019,0.00019413,2]
[331230615,1720146633825,-1279.143,0.00019413,2]
[331230616,1720146633835,-519.73,0.00019415,2]
[331230617,1720146633844,-300.0,0.00019426,2]
[331230618,1720146633854,-402.90358586,0.00019451,2]
[331230619,1720146633864,-519.73,0.00019465,2]
[331230620,1720146633874,-168.55,0.00019589,2]
[331230621,1720146633884,-300.0,0.00019605,2]
[331230622,1720146633893,-150.13,0.00019676,2]
[331230623,1720146633903,-459.0,0.00019693,2]
[331230624,1720146633912,-174.17,0.00019712,2]
[331230625,1720146633922,-300.0,0.00019784,2]
[331230626,1720146633931,-1000.0,0.00019956,2]
[331230627,1720146633941,-300.0,0.00019963,2]
[331230628,1720146633950,-1515.0776317,0.00019997,2]
[331230629,1720146633960,-252.11091902,0.00019998,2]
[331230630,1720146633969,-300.0,0.00020141,2]
[331230631,1720146633980,-320.0,0.00020284,2]
[331230632,1720146633989,-300.0,0.0002032,2]
[331230633,1720146633998,-300.0,0.00020499,2]
[331230634,1720146634008,-838.0,0.00020522,2]
[331230635,1720146634019,-371.47087959,0.00020678,2]
[331230636,1720146634029,-419.07,0.00020715,2]
[331230637,1720146634038,-854.2,0.00020715,2]
[331230638,1720146634047,-419.07,0.00020715,2]
[331230639,1720146634056,-862.4,0.00020715,2]
[331230640,1720146634066,-419.07,0.00020715,2]
[331230641,1720146634076,-854.2,0.00020715,2]
[331230642,1720146634085,-419.07,0.00020715,2]
[331230643,1720146634094,-419.07,0.00020715,2]
[331230644,1720146634104,-854.2,0.00020715,2]
[331230645,1720146634114,-419.07,0.00020715,2]
[331230646,1720146634124,-419.07,0.00020715,2]
[331230647,1720146634134,-854.2,0.00020715,2]
[331230648,1720146634143,-854.2,0.00020841,2]
[331230649,1720146634153,-168.55,0.00020895,2]
[331230650,1720146634163,-680.0,0.00020972,2]
[331230651,1720146634173,-580.3,0.00021063,2]
[331230652,1720146634183,-2500.0,0.000213,7]
[331230653,1720146634192,-180.0,0.00021397,2]
[331230654,1720146634202,-5000.0,0.000214,7]
[331230655,1720146634212,-905.7729296,0.00021478,2]
[331230656,1720146634221,-7500.0,0.000215,7]
[331230657,1720146634232,-10000.0,0.000216,7]
[331230658,1720146634241,-1265.78714914,0.000216,2]
[331230659,1720146634251,-1000.0,0.00021607,2]
[331230660,1720146634261,-297.82,0.00021644,2]
[331230661,1720146634271,-151.0,0.0002166,2]
[331230662,1720146634280,-419.07,0.00021674,2]
[331230663,1720146634290,-854.2,0.00021674,2]
[331230664,1720146634300,-287.19,0.00021674,2]
[331230665,1720146634310,-854.2,0.00021674,2]
[331230666,1720146634320,-351.42,0.00021674,2]
[331230667,1720146634330,-12500.0,0.000217,7]
[331230668,1720146634340,-715.2974,0.00021707,2]
[331230669,1720146634350,-6502.6672,0.00021708,2]
[331230670,1720146634359,-164.18231137,0.00021708,2]
[331230671,1720146634369,-313.44297127,0.00021717,2]
[331230672,1720146634379,-500.0,0.00021738,2]
[331230673,1720146634388,-200.0,0.00021738,2]
[331230674,1720146634398,-1398.41177865,0.0002177,2]
[331230675,1720146634408,-1042.0,0.0002178,2]
[331230676,1720146634417,-15382.5295651,0.00021798,2]
[331230677,1720146634622,-2500.0,0.000218,7]
[331230678,1720146634634,-223.06,0.000218,2]
[331230679,1720146634643,-1398.41177865,0.00021807,2]
[331230680,1720146634653,-2796.8235573,0.00021807,2]
[331230681,1720146634662,-39483.4685,0.00021808,2]
[331230682,1720146634672,-43879.56354287,0.00021808,2]
[331230683,1720146634686,-1306.24,0.00021808,2]
[331230684,1720146634699,-638.22195201,0.00021808,2]
[331230685,1720146634710,-425.57170512,0.00021808,2]
[331230686,1720146634720,-500.0,0.00021808,2]
[331230687,1720146634732,-2468.79098037,0.00021817,2]